bitfinex/quotes_BTCUSD_20220303
["timestamp","ask_amount","ask_price","bid_price","bid_amount"]
[1646337661902,0.445,42212.0,42209.0,0.00023268]
[1646337662102,0.445,42212.0,42209.0,0.00037902]
[1646337662404,0.445,42212.0,42209.0,0.00014634]
[1646337662603,0.445,42212.0,42204.0,0.002]
[1646337662604,0.362274,42211.0,42204.0,0.002]
[1646337662801,0.68032114,42205.0,42204.0,0.002]
[1646337663106,0.68032114,42205.0,42189.0,0.01183]
[1646337663107,0.362273,42204.0,42189.0,0.01183]
[1646337663304,0.47304714,42205.0,42187.0,0.06420423]
[1646337663505,0.1007991,42197.0,42191.0,0.19088141]
[1646337663903,0.1007991,42197.0,42187.0,0.108702]
[1646337664102,0.1007991,42197.0,42185.0,0.118571]
[1646337664305,0.1007991,42197.0,42186.0,0.085032]
[1646337664549,0.01184,42204.0,42189.0,0.059287]
[1646337664954,0.01184,42204.0,42191.0,0.20138253]
[1646337665656,0.10216611,42197.0,42189.0,0.059287]
[1646337665850,0.10216611,42197.0,42191.0,0.002]
[1646337666050,0.10216611,42197.0,42195.0,0.00014624]
[1646337666252,0.23985377,42193.0,42191.0,0.002]
[1646337666452,0.23985377,42193.0,42192.0,0.085015]
[1646337667254,0.23985377,42193.0,42190.0,0.085021]
[1646337667453,0.23985377,42193.0,42184.0,0.52465159]
[1646337667454,0.17498195,42186.0,42184.0,0.52465159]
[1646337667657,0.3,42188.0,42184.0,0.52465159]
[1646337667854,0.3,42188.0,42187.0,0.001]
[1646337668055,0.08638648,42189.0,42187.0,0.001]
[1646337668894,0.27746969,42189.0,42187.0,0.001]
[1646337669095,0.27746969,42189.0,42184.0,0.52465159]
[1646337669299,0.3,42188.0,42184.0,0.52465159]
[1646337669499,0.362273,42187.0,42184.0,0.52465159]
[1646337669895,0.362273,42185.0,42184.0,0.52465159]
[1646337671496,0.53267538,42185.0,42184.0,0.52465159]
[1646337671697,0.362273,42185.0,42184.0,0.52465159]
[1646337672149,0.662273,42185.0,42184.0,0.52465159]
[1646337672550,0.83764004,42185.0,42184.0,0.52465159]
[1646337672749,0.83764004,42185.0,42184.0,0.75465159]
[1646337672950,0.83264004,42185.0,42184.0,0.75465159]
[1646337673954,0.83964004,42185.0,42184.0,0.75465159]
[1646337674151,0.83464004,42185.0,42184.0,0.75465159]
[1646337675050,0.52764004,42185.0,42184.0,0.75465159]
[1646337675251,0.352273,42185.0,42184.0,0.75465159]
[1646337675452,0.01184,42188.0,42184.0,0.75465159]
[1646337675796,0.006,42190.0,42184.0,0.75465159]
[1646337675995,0.006,42190.0,42184.0,0.75478807]
[1646337676596,0.12289837,42190.0,42184.0,0.75492455]
[1646337676898,0.12289837,42190.0,42184.0,0.75506103]
[1646337677094,0.12289837,42190.0,42184.0,0.75478807]
[1646337677095,0.11689837,42190.0,42184.0,0.75478807]
[1646337677295,0.11689837,42190.0,42184.0,0.75465159]
[1646337677697,0.662283,42189.0,42185.0,0.00013648]
[1646337677899,0.662283,42189.0,42185.0,7.648e-05]
[1646337677900,0.0473,42188.0,42185.0,7.648e-05]
[1646337678100,0.362283,42187.0,42185.0,7.648e-05]
[1646337678299,0.0473,42186.0,42185.0,0.00021296]
[1646337678498,0.56470837,42186.0,42185.0,0.00034944]
[1646337678701,0.56470837,42186.0,42185.0,0.00027296]
[1646337678898,0.56470837,42186.0,42185.0,0.00013648]
[1646337679100,0.56470837,42186.0,42184.0,0.75465159]
[1646337681163,0.86470837,42186.0,42184.0,0.75465159]
[1646337681366,0.90089184,42186.0,42184.0,0.75465159]
[1646337681562,0.409583,42186.0,42184.0,0.75465159]
[1646337683415,0.362283,42185.0,42184.0,0.75465159]
[1646337683615,0.0473,42186.0,42184.0,0.75465159]
[1646337683819,0.0543,42186.0,42184.0,0.75465159]
[1646337684017,0.0543,42186.0,42184.0,0.74842703]
[1646337684414,0.0543,42186.0,42184.0,0.94796536]
[1646337684615,0.0543,42186.0,42184.0,0.74842703]
[1646337685015,0.0473,42186.0,42184.0,0.74842703]
[1646337685215,0.05930629,42190.0,42184.0,0.74842703]
[1646337685416,0.362283,42188.0,42184.0,0.74842703]
[1646337685615,0.409583,42188.0,42184.0,0.74842703]
[1646337686116,0.40931618,42188.0,42184.0,0.74851622]
[1646337686520,0.40931618,42188.0,42184.0,0.74860541]
[1646337686718,0.40931618,42188.0,42184.0,0.7486946]
[1646337687050,0.10595488,42185.0,42184.0,0.74860541]
[1646337687251,0.10595488,42185.0,42184.0,0.74851622]
[1646337687451,0.10595488,42185.0,42184.0,0.74842703]
[1646337687851,0.11095488,42185.0,42184.0,0.74842703]
[1646337688454,0.005,42185.0,42184.0,0.74842703]
[1646337689155,0.0473,42188.0,42184.0,0.74842703]
[1646337689553,0.13764341,42188.0,42184.0,0.74842703]
[1646337689754,0.14364341,42188.0,42184.0,0.74842703]
[1646337690556,0.362283,42187.0,42184.0,0.74842703]
[1646337690803,0.362283,42187.0,42184.0,0.7485282]
[1646337691007,0.25169377,42193.0,42186.0,0.14]
[1646337691210,0.23985377,42193.0,42187.0,0.3]
[1646337691807,0.23985377,42193.0,42188.0,0.095294]
[1646337692006,0.23985377,42193.0,42192.0,0.20316913]
[1646337692204,0.23985377,42193.0,42192.0,0.29844913]
[1646337692604,0.23985377,42193.0,42192.0,0.59844913]
[1646337692806,0.23985377,42193.0,42192.0,0.65659913]
[1646337693209,0.23985377,42193.0,42192.0,0.68027913]
[1646337693905,0.23985377,42193.0,42192.0,2.56356336]
[1646337694310,0.23985377,42193.0,42192.0,0.68027913]
[1646337694546,0.23985377,42193.0,42192.0,0.29844913]
[1646337696049,0.23985377,42193.0,42192.0,0.09528]
[1646337697047,0.23985377,42193.0,42192.0,0.27429266]
[1646337698051,0.23985377,42193.0,42192.0,0.57429266]
[1646337698303,0.23985377,42193.0,42192.0,0.59774131]
[1646337698903,0.23985377,42193.0,42192.0,0.34891156]
[1646337699103,0.44077895,42211.0,42193.0,0.95]
[1646337699306,0.2353,42214.0,42193.0,0.95]
[1646337699307,0.2353,42214.0,42194.0,0.201607]
[1646337699508,0.2353,42214.0,42196.0,0.095025]
[1646337699706,0.01183,42213.0,42196.0,0.095025]
[1646337700106,0.2353,42214.0,42205.0,0.20621033]
[1646337700107,0.1143279,42211.0,42205.0,0.20621033]
[1646337700308,0.1143279,42211.0,42206.0,0.094995]
[1646337702050,0.1143279,42211.0,42206.0,0.095995]
[1646337703149,0.1143279,42211.0,42199.0,0.3]
[1646337703549,0.1143279,42211.0,42206.0,0.01392398]
[1646337704151,0.1143279,42211.0,42209.0,0.19835519]
[1646337704350,0.1143279,42211.0,42206.0,0.01392398]
[1646337705351,0.1143279,42211.0,42205.0,0.39225376]
[1646337705798,0.1143279,42211.0,42206.0,0.31229945]
[1646337705994,0.1143279,42211.0,42206.0,0.01229945]
[1646337706196,0.1143279,42211.0,42205.0,0.39325376]
[1646337707296,0.1143279,42211.0,42206.0,0.3]
[1646337707495,0.02368,42218.0,42205.0,0.40275841]
[1646337707694,0.04868,42218.0,42205.0,0.40275841]
[1646337707895,0.025,42218.0,42206.0,0.301]
[1646337708096,0.025,42218.0,42206.0,0.01407192]
[1646337708296,0.19957081,42217.0,42206.0,0.01407192]
[1646337708696,0.025,42218.0,42206.0,0.301]
[1646337709295,0.0867156,42215.0,42206.0,0.3]
[1646337709546,0.025,42218.0,42206.0,0.31363352]
[1646337709946,0.025,42218.0,42206.0,0.31463352]
[1646337711147,0.025,42218.0,42206.0,0.31363352]
[1646337711349,0.95,42216.0,42196.0,0.011865]
[1646337711551,0.95,42216.0,42188.0,0.00146797]
[1646337711552,0.09359801,42193.0,42181.0,0.0011]
[1646337711754,0.09359801,42193.0,42177.0,0.0022]
[1646337711755,0.15,42182.0,42177.0,0.0022]
[1646337711952,0.04951231,42190.0,42168.0,0.0011]
[1646337711953,0.15,42178.0,42168.0,0.0011]
[1646337712150,0.15,42178.0,42161.0,0.0011]
[1646337712151,0.20999841,42168.0,42161.0,0.16903494]
[1646337712354,0.5909,42162.0,42157.0,0.01341809]
[1646337712552,0.0473,42161.0,42155.0,0.502782]
[1646337712750,0.362266,42160.0,42151.0,0.1416]
[1646337712948,0.362266,42160.0,42153.0,0.01208083]
[1646337713149,0.362266,42154.0,42153.0,0.001]
[1646337713805,0.862266,42154.0,42153.0,0.001]
[1646337714005,1.10226601,42154.0,42153.0,0.231]
[1646337714208,0.74000001,42154.0,42153.0,0.231]
[1646337714407,0.74000001,42154.0,42143.0,0.25707118]
[1646337714408,0.12526158,42126.0,42119.0,0.14346628]
[1646337714608,0.171116,42148.0,42119.0,0.14346628]
[1646337714609,0.3,42147.0,42127.0,0.02368]
[1646337714817,0.171116,42148.0,42134.0,0.02368]
[1646337715008,0.171116,42148.0,42135.0,0.0473]
[1646337715207,0.28651495,42141.0,42136.0,1.0473]
[1646337715408,0.28541495,42141.0,42139.0,0.10347209]
[1646337715608,0.33869004,42162.0,42140.0,1.54808773]
[1646337715807,0.0473,42174.0,42141.0,1.01257118]
[1646337715808,0.48000001,42151.0,42141.0,1.01257118]
[1646337716207,0.48000001,42151.0,42149.0,0.00014164]
[1646337716411,0.48000001,42151.0,42150.0,0.18209772]
[1646337716607,0.48000001,42151.0,42150.0,0.9298729]
[1646337717649,0.48000001,42151.0,42150.0,0.2100729]
[1646337717846,0.48000001,42151.0,42148.0,0.74348]
[1646337718046,0.48000001,42151.0,42148.0,0.02382164]
[1646337718646,0.48000001,42151.0,42148.0,0.02396328]
[1646337718847,0.48000001,42151.0,42150.0,0.03964977]
[1646337720151,0.48000001,42151.0,42150.0,0.25294299]
[1646337720796,0.48000001,42151.0,42150.0,0.25294252]
[1646337720996,0.48000001,42151.0,42150.0,0.97274252]
[1646337721197,0.01186,42165.0,42153.0,0.02368]
[1646337721402,0.4895,42176.0,42159.0,0.02368]
[1646337721403,0.01184,42172.0,42159.0,0.02368]
[1646337721596,0.01184,42175.0,42163.0,0.74348]
[1646337721898,0.01184,42178.0,42165.0,0.01924864]
[1646337722095,0.01184,42178.0,42166.0,0.06654864]
[1646337722297,0.01184,42178.0,42166.0,0.78634864]
[1646337722497,1.02680944,42180.0,42166.0,0.78634864]
[1646337722700,1.21804069,42180.0,42166.0,0.78634864]
[1646337722896,0.01184,42185.0,42179.0,0.15436447]
[1646337723100,0.01184,42187.0,42180.0,0.3473]
[1646337723308,0.01184,42189.0,42182.0,0.01226976]
[1646337723502,0.01184,42189.0,42181.0,0.13882611]
[1646337723503,0.23153269,42191.0,42184.0,0.01924864]
[1646337723696,0.23153269,42191.0,42186.0,0.01924864]
[1646337723897,0.23153269,42191.0,42187.0,0.0473]
[1646337724099,0.23153269,42191.0,42188.0,0.0473]
[1646337724298,0.23153269,42191.0,42190.0,0.01133655]
[1646337724554,0.23153269,42191.0,42190.0,0.05649104]
[1646337725052,0.65,42190.0,42182.0,0.003]
[1646337725259,0.65,42190.0,42186.0,0.0001262]
[1646337725552,0.65,42190.0,42187.0,0.0473]
[1646337725754,0.59153269,42191.0,42187.0,0.0473]
[1646337725952,0.59153269,42191.0,42186.0,0.0003786]
[1646337726153,0.59153269,42191.0,42186.0,0.0002524]
[1646337726354,0.59153269,42191.0,42186.0,0.0001262]
[1646337726552,0.59153269,42191.0,42185.0,0.01178228]
[1646337726952,0.59153269,42191.0,42186.0,0.01180883]
[1646337727161,0.59153269,42191.0,42186.0,0.0001262]
[1646337727553,0.59153269,42191.0,42186.0,0.0002524]
[1646337727754,0.59153269,42191.0,42186.0,0.0003786]
[1646337727952,0.59153269,42191.0,42186.0,0.0022524]
[1646337728156,0.59153269,42191.0,42186.0,0.0021262]
[1646337728397,0.59153269,42191.0,42186.0,0.002]
[1646337728596,0.59153269,42191.0,42186.0,0.0021412]
[1646337728998,0.59153269,42191.0,42186.0,0.0022824]
[1646337729297,0.59153269,42191.0,42186.0,0.0004236]
[1646337729500,0.59153269,42191.0,42186.0,0.0002824]
[1646337729696,0.59153269,42191.0,42186.0,0.0001412]
[1646337729897,0.44153269,42191.0,42185.0,0.0149503]
[1646337730099,0.44153269,42191.0,42186.0,0.0001412]
[1646337730300,0.15,42187.0,42186.0,0.0001412]
[1646337730602,0.735963,42187.0,42186.0,1.2e-06]
[1646337730801,0.747803,42187.0,42186.0,2.4e-06]
[1646337730999,0.735963,42187.0,42186.0,0.0001436]
[1646337731199,0.43497866,42187.0,42186.0,3.6e-06]
[1646337731400,0.38552,42187.0,42186.0,3.6e-06]
[1646337731601,0.38552,42187.0,42174.0,0.01168065]
[1646337731800,0.15,42180.0,42174.0,0.01168065]
[1646337732253,0.15,42179.0,42174.0,0.01168065]
[1646337733053,0.45,42183.0,42174.0,0.01168065]
[1646337733054,0.15,42183.0,42174.0,0.01168065]
[1646337733253,0.01184,42186.0,42174.0,0.01168065]
[1646337733655,0.3,42190.0,42174.0,0.03536065]
[1646337733853,0.15,42190.0,42174.0,0.03536065]
[1646337734152,0.15,42190.0,42174.0,0.04136065]
[1646337734353,0.45,42190.0,42174.0,0.04136065]
[1646337734653,0.16113673,42187.0,42174.0,0.01768065]
[1646337734853,0.21,42183.0,42174.0,0.01768065]
[1646337735053,0.21,42183.0,42180.0,0.00014048]
[1646337735652,0.21,42183.0,42180.0,0.00028096]
[1646337735906,0.21,42183.0,42180.0,0.00042144]
[1646337736110,0.21,42183.0,42180.0,0.00014048]
[1646337736307,0.21,42183.0,42180.0,0.01261112]
[1646337737107,0.21,42183.0,42182.0,0.04279668]
[1646337737308,0.21,42183.0,42182.0,0.03074917]
[1646337737508,0.198,42183.0,42182.0,0.03074917]
[1646337737706,0.198,42183.0,42181.0,0.059289]
[1646337737908,0.198,42183.0,42182.0,0.03074953]
[1646337738110,0.198,42183.0,42182.0,0.03074808]
[1646337738510,0.23153269,42191.0,42186.0,0.74348]
[1646337738711,0.23153269,42191.0,42189.0,0.7198]
[1646337738909,0.23170147,42191.0,42189.0,0.91839604]
[1646337739112,0.23187025,42191.0,42190.0,0.09198305]
[1646337739312,0.23203903,42191.0,42189.0,0.19359604]
[1646337739546,0.23187025,42191.0,42189.0,0.19359604]
[1646337739746,0.23153269,42191.0,42189.0,0.19359604]
[1646337741149,0.23153269,42191.0,42189.0,0.91339604]
[1646337741348,0.00016204,42192.0,42189.0,0.91339604]
[1646337741550,0.15,42205.0,42189.0,0.91339604]
[1646337741551,0.16184,42205.0,42199.0,0.12420346]
[1646337741749,0.15,42205.0,42199.0,0.12420346]
[1646337741950,0.15,42205.0,42191.0,0.22937978]
[1646337742150,0.00016204,42192.0,42190.0,0.0473]
[1646337742352,0.00032408,42192.0,42190.0,0.0473]
[1646337742549,0.00048612,42192.0,42190.0,0.0473]
[1646337742752,0.00032408,42192.0,42190.0,0.0473]
[1646337742950,0.18501699,42201.0,42190.0,0.0473]
[1646337743406,0.01183,42207.0,42190.0,0.0473]
[1646337743602,0.15,42204.0,42190.0,0.0473]
[1646337743804,0.00013741,42194.0,42190.0,0.0473]
[1646337744003,0.00027482,42194.0,42187.0,0.7198]
[1646337744203,0.00041223,42194.0,42187.0,0.7198]
[1646337744502,0.00013741,42194.0,42187.0,0.7198]
[1646337744703,0.15,42202.0,42187.0,0.7198]
[1646337744903,0.3,42203.0,42186.0,0.10444674]
[1646337745103,0.3,42203.0,42186.0,0.10458418]
[1646337745104,0.15,42197.0,42186.0,0.10458418]
[1646337745505,0.20575292,42195.0,42186.0,0.00013744]
[1646337745705,0.15,42193.0,42186.0,0.00013744]
[1646337745906,0.15,42193.0,42186.0,0.00041232]
[1646337746403,0.15,42193.0,42186.0,0.00013744]
[1646337746605,0.20575292,42195.0,42186.0,0.1764242]
[1646337747048,0.35575292,42195.0,42186.0,0.17654961]
[1646337747449,0.0001358,42194.0,42186.0,0.01506666]
[1646337747646,0.0002716,42194.0,42188.0,0.01153734]
[1646337747849,0.0004074,42194.0,42189.0,0.01055477]
[1646337748048,0.0002716,42194.0,42190.0,0.0122338]
[1646337748247,0.0001358,42194.0,42186.0,0.00312541]
[1646337748454,0.02368,42195.0,42186.0,0.01487061]
[1646337748648,0.02368,42195.0,42188.0,0.01260231]
[1646337748851,0.15,42196.0,42189.0,0.01155997]
[1646337749049,0.00027162,42194.0,42190.0,0.01442602]
[1646337749248,0.00040743,42194.0,42190.0,0.01168007]
[1646337749448,0.00040743,42194.0,42186.0,0.00025082]
[1646337749449,0.15,42191.0,42188.0,0.01542978]
[1646337749649,0.15013581,42194.0,42189.0,0.01260533]
[1646337749850,0.15,42195.0,42189.0,0.01246451]
[1646337750049,0.15,42195.0,42190.0,0.002]
[1646337750450,0.227066,42196.0,42190.0,0.002]
[1646337750652,0.0002307,42194.0,42190.0,0.002]
[1646337750895,0.00034605,42194.0,42190.0,0.01653629]
[1646337751098,0.0002307,42194.0,42190.0,0.01653629]
[1646337751295,0.00011535,42194.0,42190.0,0.01453629]
[1646337751494,0.145,42195.0,42192.0,0.01492099]
[1646337751695,0.145,42195.0,42193.0,0.01389657]
[1646337751896,0.145,42195.0,42186.0,0.0136186]
[1646337752098,0.145,42195.0,42190.0,0.01784311]
[1646337752298,0.00011535,42194.0,42190.0,0.01784311]
[1646337752498,0.0002307,42194.0,42190.0,0.01784311]
[1646337752900,0.00011535,42194.0,42190.0,0.01784311]
[1646337753199,0.145,42195.0,42190.0,0.01584311]
[1646337753399,0.145,42195.0,42185.0,0.01245139]
[1646337753600,0.145,42195.0,42186.0,0.01473092]
[1646337753798,0.145,42195.0,42188.0,0.01101576]
[1646337754000,0.00014607,42194.0,42189.0,0.01201656]
[1646337754199,0.00014607,42194.0,42190.0,0.01593382]
[1646337754200,0.00043821,42194.0,42190.0,0.01593382]
[1646337754549,0.00029214,42194.0,42193.0,0.01006854]
[1646337754751,0.145,42198.0,42193.0,0.71101]
[1646337755357,0.01184,42199.0,42194.0,0.01275031]
[1646337755552,0.00014606,42196.0,42195.0,0.92133983]
[1646337755756,0.00043818,42196.0,42195.0,0.71098]
[1646337756257,0.00029212,42196.0,42195.0,0.71098]
[1646337756552,0.145,42201.0,42195.0,0.71098]
[1646337756751,0.145,42201.0,42196.0,0.18696038]
[1646337756950,0.145,42201.0,42197.0,0.71095]
[1646337757353,0.145,42201.0,42200.0,0.13366345]
[1646337757552,0.145,42201.0,42200.0,0.84456345]
[1646337757754,0.145,42204.0,42200.0,0.84456345]
[1646337757952,0.145,42204.0,42200.0,0.7119]
[1646337758806,0.14530524,42204.0,42200.0,0.7119]
[1646337759004,0.14545786,42204.0,42200.0,0.7119]
[1646337759208,0.14545786,42204.0,42201.0,0.20048473]
[1646337759405,0.14515262,42204.0,42201.0,0.20048473]
[1646337759605,0.145,42204.0,42201.0,0.20048473]
[1646337760203,0.145,42204.0,42200.0,0.72629012]
[1646337760204,0.145,42204.0,42200.0,0.7109]
[1646337760604,0.145,42204.0,42200.0,0.71077407]
[1646337761507,0.145,42204.0,42202.0,0.17827928]
[1646337761705,0.145,42204.0,42200.0,0.71077407]
[1646337762064,0.14516817,42204.0,42200.0,0.71277407]
[1646337762265,0.14550451,42204.0,42200.0,0.71277407]
[1646337762665,0.14533634,42204.0,42202.0,0.18847827]
[1646337762864,0.14516817,42204.0,42202.0,0.18847827]
[1646337763065,0.145,42204.0,42202.0,0.18847827]
[1646337763265,0.145,42204.0,42200.0,0.71077407]
[1646337763467,0.145,42203.0,42200.0,0.71077407]
[1646337764067,0.145,42203.0,42201.0,0.01069019]
[1646337764265,0.145,42203.0,42200.0,0.71277407]
[1646337765167,0.145,42203.0,42200.0,0.71251165]
[1646337765368,0.145,42203.0,42200.0,0.71051165]
[1646337765568,0.345,42203.0,42200.0,0.71051165]
[1646337765798,0.16133616,42202.0,42200.0,0.71051165]
[1646337766004,0.345,42203.0,42200.0,0.71051165]
[1646337766199,0.145,42203.0,42200.0,0.71051165]
[1646337766606,0.36868,42203.0,42200.0,0.71051165]
[1646337767000,0.02368,42201.0,42200.0,0.71051165]
[1646337767200,0.47368,42201.0,42200.0,0.71051165]
[1646337768801,0.27368,42201.0,42200.0,0.71051165]
[1646337769648,0.45,42201.0,42200.0,0.71051165]
[1646337769849,0.595,42203.0,42200.0,0.88119994]
[1646337770050,0.59511394,42203.0,42200.0,0.88119994]
[1646337770451,0.14522788,42203.0,42200.0,0.88119994]
[1646337770654,0.14534182,42203.0,42200.0,0.88119994]
[1646337770851,0.14534182,42203.0,42202.0,0.08538111]
[1646337771052,0.14522788,42203.0,42202.0,0.08538111]
[1646337771254,0.145,42203.0,42202.0,0.08538111]
[1646337771454,0.145,42208.0,42202.0,0.79664111]
[1646337771657,0.01183,42215.0,42206.0,0.13366345]
[1646337771858,0.00118556,42214.0,42207.0,1.0198]
[1646337772054,0.00118556,42214.0,42208.0,0.72342067]
[1646337772251,0.00118556,42214.0,42209.0,0.29092228]
[1646337772453,0.00118556,42214.0,42210.0,1.01112]
[1646337773305,0.145,42216.0,42210.0,1.01112]
[1646337773306,0.00118528,42215.0,42210.0,0.71112]
[1646337773703,0.00015577,42214.0,42210.0,0.71112]
[1646337773907,0.00031154,42214.0,42210.0,0.71112]
[1646337774107,0.145,42212.0,42210.0,0.71112]
[1646337775207,0.00118528,42215.0,42210.0,0.71112]
[1646337775410,0.145,42211.0,42210.0,0.71112]
[1646337775609,0.97852783,42211.0,42210.0,0.71112]
[1646337775810,0.145,42211.0,42210.0,0.71112]
[1646337776609,0.595,42211.0,42210.0,0.71112]
[1646337776811,0.78313417,42211.0,42210.0,0.71112]
[1646337777275,1.14541717,42211.0,42210.0,0.71112]
[1646337778074,1.32271717,42211.0,42210.0,0.31812]
[1646337778274,1.48844948,42211.0,42210.0,0.31812]
[1646337778973,1.50027948,42211.0,42210.0,0.31812]
[1646337780172,1.50027948,42211.0,42206.0,0.08545]
[1646337780173,0.25,42207.0,42206.0,0.08545]
[1646337780376,0.86386327,42207.0,42206.0,0.08545]
[1646337780571,0.50158027,42207.0,42206.0,0.08545]
[1646337781198,0.52526027,42207.0,42206.0,0.08545]
[1646337781399,0.25,42201.0,42187.0,0.1249]
[1646337781702,0.145,42196.0,42188.0,0.3]
[1646337781898,0.25,42197.0,42188.0,0.3]
[1646337781899,0.2973,42197.0,42188.0,0.01093478]
[1646337782098,0.31868934,42192.0,42186.0,0.00012386]
[1646337782304,0.145,42192.0,42186.0,0.00012386]
[1646337782499,0.145,42192.0,42186.0,0.09682152]
[1646337782699,0.145,42192.0,42188.0,0.0121414]
[1646337783202,0.25,42191.0,42186.0,0.00012386]
[1646337783403,0.145,42189.0,42184.0,0.0134557]
[1646337783799,0.145,42189.0,42182.0,0.003]
[1646337784099,0.145,42189.0,42185.0,0.19305338]
[1646337784553,0.145,42189.0,42186.0,0.00027718]
[1646337784755,0.00050247,42194.0,42186.0,0.30027718]
[1646337784964,0.00016749,42194.0,42186.0,1.01993859]
[1646337785155,0.1901,42203.0,42186.0,1.0198]
[1646337785357,0.145,42201.0,42186.0,1.12188899]
[1646337785557,0.145,42201.0,42188.0,0.0159454]
[1646337785755,0.1134,42205.0,42198.0,0.1154049]
[1646337785956,0.145,42207.0,42198.0,0.1154049]
[1646337786157,0.145,42207.0,42199.0,0.16932463]
[1646337786356,0.145,42207.0,42194.0,0.3]
[1646337786557,0.145,42207.0,42191.0,0.3]
[1646337786755,0.267708,42213.0,42191.0,0.3]
[1646337786756,0.20025533,42202.0,42191.0,0.3]
[1646337787358,0.145,42203.0,42194.0,0.10503195]
[1646337787560,0.145,42203.0,42195.0,0.3]
[1646337787759,0.00029266,42201.0,42195.0,0.3]
[1646337787958,0.00043899,42201.0,42195.0,0.3]
[1646337788158,0.00029266,42201.0,42195.0,0.3]
[1646337788400,0.00014633,42201.0,42195.0,0.3]
[1646337788599,0.41310143,42207.0,42195.0,0.3]
[1646337788807,0.26810143,42207.0,42195.0,0.3]
[1646337789001,0.145,42203.0,42194.0,0.002]
[1646337789203,0.145,42202.0,42194.0,0.002]
[1646337789403,0.00029266,42200.0,42194.0,0.002]
[1646337789602,0.00043899,42200.0,42194.0,0.002]
[1646337790000,0.00029266,42200.0,42194.0,0.002]
[1646337790204,0.33006969,42202.0,42194.0,0.002]
[1646337790402,0.145,42202.0,42194.0,0.11075525]
[1646337790601,0.145,42202.0,42200.0,0.19054952]
[1646337791401,0.01183,42207.0,42201.0,0.10179772]
[1646337791602,0.01183,42207.0,42201.0,0.40179772]
[1646337791801,0.313,42213.0,42201.0,0.10179772]
[1646337791802,0.01183,42210.0,42201.0,0.10179772]
[1646337792068,0.01183,42212.0,42201.0,1.13436516]
[1646337792266,0.28259776,42214.0,42201.0,0.41456516]
[1646337792465,0.35364035,42214.0,42201.0,0.41456516]
[1646337792868,0.3536402,42214.0,42201.0,0.41456516]
[1646337793064,0.3536402,42214.0,42206.0,0.17654424]
[1646337793266,0.145,42209.0,42201.0,0.001]
[1646337793466,0.145,42209.0,42197.0,0.01079688]
[1646337793665,0.145,42209.0,42197.0,0.73059688]
[1646337793865,0.060458,42214.0,42198.0,0.3]
[1646337794066,0.145,42213.0,42200.0,0.01349647]
[1646337794267,0.145,42213.0,42199.0,0.74348]
[1646337794268,0.00118533,42214.0,42208.0,0.12003352]
[1646337794466,0.00118533,42214.0,42210.0,0.15355701]
[1646337795668,0.00118528,42215.0,42210.0,0.15355701]
[1646337796100,0.00118528,42215.0,42210.0,0.15555701]
[1646337796703,0.00135032,42215.0,42210.0,0.15555701]
[1646337796900,0.0016804,42215.0,42210.0,0.15555701]
[1646337797301,0.00033008,42215.0,42209.0,0.3]
[1646337797501,0.00118525,42216.0,42208.0,0.12003352]
[1646337797701,0.00118525,42216.0,42204.0,0.3]
[1646337797902,0.00118525,42216.0,42201.0,0.01367872]
[1646337798103,0.00118525,42216.0,42203.0,0.001]
[1646337798302,0.00014331,42214.0,42203.0,0.001]
[1646337798500,0.00028662,42214.0,42210.0,0.2008163]
[1646337798704,0.00042993,42214.0,42207.0,0.3]
[1646337798903,0.00028662,42214.0,42207.0,0.3]
[1646337799102,0.00014331,42214.0,42207.0,0.3]
[1646337799303,0.14618522,42217.0,42207.0,0.3]
[1646337799570,0.16789021,42216.0,42207.0,0.3]
[1646337799759,0.00118522,42217.0,42211.0,0.20661257]
[1646337799959,0.00012778,42213.0,42207.0,0.3]
[1646337800160,0.00012778,42213.0,42206.0,0.09171721]
[1646337800161,0.00038334,42213.0,42206.0,0.09171721]
[1646337800360,0.00038334,42213.0,42207.0,0.3]
[1646337800561,0.00025556,42213.0,42207.0,0.3]
[1646337800767,0.00012778,42213.0,42207.0,0.3]
[1646337800962,0.14618519,42218.0,42211.0,0.21481339]
[1646337801163,0.14618519,42218.0,42207.0,0.3]
[1646337801366,0.14618519,42218.0,42206.0,0.09171721]
[1646337801561,0.00014597,42212.0,42206.0,0.09171721]
[1646337801762,0.00029194,42212.0,42206.0,0.09171721]
[1646337801962,0.00043791,42212.0,42207.0,0.3]
[1646337802163,0.00029194,42212.0,42207.0,0.3]
[1646337802364,0.00014597,42212.0,42207.0,1.0198]
[1646337802562,0.145,42218.0,42207.0,1.0198]
[1646337802964,0.00118533,42214.0,42207.0,0.3]
[1646337803167,0.00012235,42212.0,42207.0,0.3]
[1646337803408,0.00036705,42212.0,42207.0,0.3]
[1646337803813,0.145,42209.0,42194.0,0.01436347]
[1646337804007,0.145,42209.0,42193.0,0.3]
[1646337804208,0.145,42209.0,42202.0,0.001]
[1646337804209,0.575,42209.0,42202.0,0.001]
[1646337804407,0.6223,42209.0,42202.0,0.001]
[1646337804809,0.362283,42208.0,42202.0,0.001]
[1646337805010,0.6223,42209.0,42202.0,0.001]
[1646337805011,0.00012236,42205.0,42202.0,0.001]
[1646337805209,0.00036708,42205.0,42202.0,0.001]
[1646337805413,0.00024472,42205.0,42195.0,0.11410768]
[1646337805608,0.00012236,42205.0,42195.0,0.11410768]
[1646337805810,0.145,42206.0,42195.0,0.11410768]
[1646337805811,0.15449236,42203.0,42195.0,0.11410768]
[1646337806115,6.146e-05,42195.0,42190.0,0.003]
[1646337806811,0.2178694,42196.0,42190.0,0.003]
[1646337807054,0.14519092,42201.0,42190.0,0.003]
[1646337807255,0.14475238,42200.0,42190.0,0.303]
[1646337807454,0.14475238,42200.0,42190.0,0.3]
[1646337807655,0.14475238,42200.0,42197.0,0.1822761]
[1646337807856,0.20404012,42200.0,42197.0,0.1822761]
[1646337808057,0.39873814,42200.0,42190.0,0.3]
[1646337808254,0.39873814,42200.0,42187.0,1.0198]
[1646337808456,0.00029236,42197.0,42187.0,1.0198]
[1646337808657,0.00043854,42197.0,42187.0,1.0198]
[1646337808855,0.00043854,42197.0,42187.0,0.3]
[1646337809056,0.00014618,42197.0,42191.0,0.10559537]